bitfinex-derivatives/quotes_BTCF0:USTF0_20251207
["timestamp","ask_amount","ask_price","bid_price","bid_amount"]
[1765129688995,1.02388,91064.0,91063.0,0.0109805]
[1765129689199,0.3608,91064.0,91063.0,0.6557905]
[1765129689499,0.00016444,91075.0,91074.0,0.6557891]
[1765129689697,0.66324444,91075.0,91074.0,0.6557891]
[1765129690005,0.66324444,91075.0,91074.0,0.3367491]
[1765129690598,0.66324444,91075.0,91074.0,0.6557891]
[1765129691298,0.66324444,91075.0,91074.0,0.0109791]
[1765129691499,0.66308,91071.0,91070.0,0.0109796]
[1765129692095,0.00016444,91075.0,91074.0,0.3482091]
[1765129692397,0.00016444,91075.0,91074.0,0.6887691]
[1765129692895,0.00016444,91075.0,91074.0,0.67779]
[1765129693199,0.00016444,91075.0,91074.0,0.6887691]
[1765129693697,0.32568444,91075.0,91074.0,0.6887691]
[1765129694394,0.00016444,91075.0,91074.0,0.71993546]
[1765129694792,0.00016444,91075.0,91074.0,1.09993546]
[1765129696000,0.00016444,91075.0,91074.0,0.71993546]
[1765129696393,0.00016444,91075.0,91074.0,0.84993546]
[1765129696584,0.00016444,91075.0,91074.0,1.08993546]
[1765129696997,0.00016444,91075.0,91074.0,0.71993546]
[1765129697196,0.00016444,91075.0,91074.0,0.93815686]
[1765129697504,0.00016444,91075.0,91074.0,0.89993546]
[1765129698187,0.00016444,91075.0,91074.0,1.58437546]
[1765129700195,0.00016444,91075.0,91074.0,1.23437546]
[1765129700393,0.00016444,91075.0,91074.0,1.59437546]
[1765129700593,0.00016444,91075.0,91074.0,1.23437546]
[1765129700892,0.00016444,91075.0,91074.0,1.65437546]
[1765129701088,0.00016444,91075.0,91074.0,1.71220048]
[1765129701999,0.00016444,91075.0,91074.0,1.48220048]
[1765129702199,0.00016444,91075.0,91074.0,1.42437546]
[1765129702697,0.00016444,91075.0,91074.0,1.66437546]
[1765129702900,0.00016444,91075.0,91074.0,1.33437546]
[1765129703602,0.00016444,91075.0,91074.0,1.47437546]
[1765129704404,0.66456,91091.0,91090.0,0.67878999]
[1765129704605,0.66456,91091.0,91090.0,0.70895636]
[1765129706206,0.84098,91091.0,91090.0,0.03116636]
[1765129706793,0.84098,91091.0,91090.0,0.0694952]
[1765129706992,0.84098,91091.0,91090.0,0.03116636]
[1765129707401,0.84098,91091.0,91090.0,0.06949443]
[1765129708001,0.66456,91091.0,91090.0,0.74728443]
[1765129708203,0.66456,91091.0,91090.0,0.40672443]
[1765129708404,0.84098,91091.0,91090.0,0.06949443]
[1765129710012,0.66456,91091.0,91090.0,0.74728443]
[1765129710907,0.66456,91091.0,91090.0,0.36839636]
[1765129711105,0.66456,91091.0,91090.0,0.03116636]
[1765129712608,1.02536,91091.0,91090.0,0.36839636]
[1765129712801,1.02536,91091.0,91090.0,0.70895636]
[1765129713410,1.02536,91091.0,91090.0,0.73768316]
[1765129713707,1.02536,91091.0,91090.0,0.03116636]
[1765129718713,1.02536,91091.0,91090.0,0.06949443]
[1765129718912,1.02536,91091.0,91090.0,0.03116636]
[1765129719114,1.02536,91091.0,91090.0,0.06950967]
[1765129719300,1.02536,91091.0,91090.0,0.03116636]
[1765129720315,1.02536,91091.0,91090.0,0.06954115]
[1765129720513,1.38536,91091.0,91090.0,0.06954115]
[1765129720714,1.15536,91091.0,91090.0,0.06954115]
[1765129721013,1.38536,91091.0,91090.0,0.03116636]
[1765129721804,1.05536,91091.0,91090.0,0.03116636]
[1765129722018,1.02536,91091.0,91090.0,0.03116636]
[1765129723113,1.02536,91091.0,91090.0,0.62955636]
[1765129723303,1.02536,91091.0,91090.0,0.03116636]
[1765129725205,1.38536,91091.0,91090.0,0.03116636]
[1765129726607,1.38536,91091.0,91081.0,0.00016474]
[1765129726608,0.6318382,91082.0,91081.0,0.00016474]
[1765129726805,0.9926382,91082.0,91081.0,0.00016474]
[1765129727215,0.98166,91091.0,91090.0,0.6093672]
[1765129727412,0.98166,91091.0,91081.0,0.00016474]
[1765129727413,0.62086,91083.0,91082.0,0.6093681]
[1765129727607,0.62086,91083.0,91082.0,0.6393681]
[1765129728209,0.62086,91083.0,91082.0,0.0409781]
[1765129728414,0.62086,91082.0,91081.0,0.00016474]
[1765129728716,0.62086,91082.0,91081.0,0.59855474]
[1765129729617,0.62086,91082.0,91081.0,0.94855474]
[1765129730004,0.5142,91089.0,91081.0,0.94855474]
[1765129730210,1.13506,91089.0,91088.0,0.59839]
[1765129731121,0.62086,91089.0,91088.0,0.59839]
[1765129731718,0.62086,91082.0,91081.0,0.59855474]
[1765129731916,0.62086,91082.0,91081.0,0.96855474]
[1765129732310,0.30827,91082.0,91081.0,0.96855474]
[1765129732522,0.98166,91091.0,91090.0,0.31248]
[1765129732722,0.98166,91091.0,91081.0,0.03993074]
[1765129732914,0.62086,91082.0,91081.0,0.00016474]
[1765129733220,0.42086,91082.0,91081.0,0.00016474]
[1765129733420,0.78166,91082.0,91081.0,0.00016474]
[1765129734206,0.78166,91082.0,91081.0,0.31264474]
[1765129735121,0.78166,91082.0,91081.0,0.59855474]
[1765129737611,0.78166,91082.0,91081.0,0.31264474]
[1765129737925,0.78166,91082.0,91081.0,0.59855474]
[1765129738721,0.78166,91082.0,91081.0,0.62897362]
[1765129740920,0.3608,91082.0,91081.0,0.66734841]
[1765129741640,0.60490447,91086.0,91085.0,0.59083]
[1765129741834,0.60490447,91086.0,91085.0,0.62124888]
[1765129743426,0.60490447,91086.0,91085.0,0.59083]
[1765129743828,0.60490447,91086.0,91085.0,0.62127283]
[1765129746428,0.97588217,91086.0,91085.0,0.03044283]
[1765129746821,0.00027447,91086.0,91085.0,1.03282283]
[1765129748027,0.58512447,91086.0,91085.0,0.95282283]
[1765129748430,0.28876447,91086.0,91085.0,0.95282283]
[1765129748635,0.09703,91095.0,91094.0,0.5833567]
[1765129748828,0.3608,91108.0,91107.0,0.5833552]
[1765129749132,0.58485,91117.0,91116.0,0.5833541]
[1765129749350,0.58485,91117.0,91116.0,0.44044283]
[1765129749630,0.58485,91117.0,91107.0,0.00016464]
[1765129749631,0.0548752,91109.0,91100.0,0.02877318]
[1765129749830,0.0109794,91072.0,91070.0,0.03678265]
[1765129750040,0.0109797,91070.0,91056.0,0.15445]
[1765129750220,0.0932141,91070.0,91056.0,0.72683]
[1765129750421,0.3609797,91070.0,91069.0,0.29403]
[1765129750621,0.3926,91070.0,91069.0,0.57238]
[1765129750826,0.4035796,91070.0,91069.0,0.57238]
[1765129751422,0.3926,91070.0,91069.0,0.57238]
[1765129751622,0.00016431,91072.0,91071.0,0.18376]
[1765129751830,0.41016431,91072.0,91063.0,0.17261178]
[1765129752025,0.0109804,91064.0,91063.0,0.17261178]
[1765129752231,0.3609804,91064.0,91063.0,0.17261178]
[1765129752535,0.3609804,91064.0,91063.0,0.50694178]
[1765129752536,0.1409804,91064.0,91063.0,0.50694178]
[1765129752726,0.0109795,91071.0,91063.0,0.86094178]
[1765129752932,0.0109795,91071.0,91070.0,0.33433]
[1765129753236,0.00016431,91072.0,91070.0,0.33433]
[1765129753237,0.00016431,91072.0,91070.0,0.68833]
[1765129753432,0.00016431,91072.0,91071.0,0.87209]
[1765129753823,0.36096431,91072.0,91071.0,0.87209]
[1765129754132,0.36096431,91072.0,91071.0,1.08305035]
[1765129754335,0.36096431,91072.0,91058.0,0.3608]
[1765129754336,0.0109807,91061.0,91058.0,0.3608]
[1765129754537,0.010981,91059.0,91040.0,0.18376]
[1765129754729,0.440981,91059.0,91040.0,0.18376]
[1765129755126,0.52956509,91059.0,91040.0,0.18376]
[1765129756528,0.440981,91059.0,91040.0,0.18376]
[1765129756935,0.7216,91055.0,91040.0,0.18376]
[1765129757135,1.1016,91055.0,91040.0,0.18376]
[1765129758328,0.0109831,91041.0,91036.0,0.00010946]
[1765129758524,0.3608,91037.0,91036.0,0.00010946]
[1765129758726,0.79165521,91037.0,91036.0,0.00010946]
[1765129759333,0.79165521,91037.0,91020.0,0.18376]
[1765129759334,0.79165521,91037.0,91027.0,0.00016473]
[1765129759535,0.03085521,91036.0,91027.0,0.00016473]
[1765129759833,0.03085521,91035.0,91027.0,0.00016473]
[1765129760038,0.0109847,91029.0,91027.0,0.00016473]
[1765129760235,0.90600467,91028.0,91027.0,0.00016473]
[1765129760435,1.27600467,91028.0,91010.0,0.87209]
[1765129760640,0.3608,91013.0,91012.0,0.03834857]
[1765129760938,0.39175434,91013.0,91012.0,0.03834857]
[1765129761332,0.39175434,91013.0,91012.0,0.37267857]
[1765129761533,0.39175434,91013.0,91012.0,0.72667857]
[1765129762236,9.913e-05,91013.0,91012.0,1.45747857]
[1765129762441,0.00016473,91022.0,91021.0,0.68833]
[1765129762833,0.03094657,91022.0,91021.0,0.72667857]
[1765129763643,0.03112657,91022.0,91021.0,0.72667857]
[1765129763847,0.03112657,91022.0,91021.0,0.68833]
[1765129764229,0.03094657,91022.0,91021.0,0.72667857]
[1765129764434,0.0109841,91033.0,91032.0,0.68833]
[1765129764929,0.0110729,91043.0,91042.0,0.68833]
[1765129765242,0.0109829,91043.0,91042.0,0.68833]
[1765129765429,0.0109829,91043.0,91042.0,0.72667857]
[1765129765835,0.0111636,91037.0,91036.0,0.87209]
[1765129766036,0.00018,91037.0,91036.0,0.87209]
[1765129767240,0.0109835,91038.0,91037.0,0.68833]
[1765129767436,0.87508,91044.0,91042.0,0.68833]
[1765129767437,0.010983,91043.0,91042.0,0.68833]
[1765129767644,0.87508,91044.0,91043.0,0.68833]
[1765129767947,0.3608,91044.0,91043.0,0.68833]
[1765129768131,0.3608,91044.0,91043.0,0.72667857]
[1765129768741,0.00016473,91052.0,91051.0,0.68833]
[1765129769050,0.00016473,91052.0,91051.0,0.72667857]
[1765129772539,0.00018,91048.0,91047.0,0.18376]
[1765129772734,0.0111632,91040.0,91039.0,0.33433]
[1765129772941,0.3719632,91040.0,91039.0,0.33433]
[1765129773534,0.00018,91037.0,91025.0,0.010985]
[1765129774744,0.00018,91037.0,91036.0,0.51809]
[1765129775644,0.00018,91034.0,91021.0,0.0109854]
[1765129775848,0.38018,91034.0,91021.0,0.0109854]
[1765129776340,9e-05,91034.0,91033.0,0.68849473]
[1765129777052,0.03045306,91034.0,91033.0,0.68849473]
[1765129778450,0.42054306,91034.0,91033.0,0.68849473]
[1765129778839,0.4197231,91034.0,91033.0,0.68849473]
[1765129779043,0.36054306,91034.0,91033.0,0.68849473]
[1765129779552,0.36054306,91034.0,91033.0,0.00016473]
[1765129779943,0.36036306,91034.0,91020.0,0.18376]
[1765129780148,0.00018,91028.0,91027.0,0.72667857]
[1765129780446,0.00018,91028.0,91017.0,0.3608]
[1765129780447,0.0111659,91018.0,91017.0,1.04913]
[1765129780752,0.04134896,91018.0,91017.0,1.04913]
[1765129781149,0.10041282,91018.0,91017.0,1.04913]
[1765129781743,0.48041282,91018.0,91014.0,0.8589]
[1765129781944,0.0109863,91015.0,91014.0,0.18376]
[1765129782139,0.04134936,91015.0,91014.0,0.8589]
[1765129782343,0.04134936,91015.0,91014.0,0.89724857]
[1765129783148,0.03036306,91015.0,91014.0,0.90823497]
[1765129784145,0.03036306,91015.0,91014.0,0.89724857]
[1765129785747,0.0590952,91015.0,91014.0,0.89724857]
[1765129785949,0.08945826,91015.0,91014.0,0.89724857]
[1765129786249,0.03036306,91015.0,91014.0,0.89724857]
[1765129787952,0.03036306,91015.0,91014.0,1.25724857]
[1765129788148,3.06e-06,91020.0,91019.0,0.72447437]
[1765129788348,3.06e-06,91020.0,91019.0,0.6861258]
[1765129789849,0.010983,91042.0,91041.0,0.34337]
[1765129790049,0.51436,91043.0,91042.0,0.67514]
[1765129790050,0.010983,91043.0,91042.0,0.67514]
[1765129790556,0.3608,91047.0,91046.0,0.67514]
[1765129791260,0.3608,91055.0,91046.0,0.67514]
[1765129791261,0.3608,91055.0,91054.0,0.67514]
[1765129791652,0.3717814,91055.0,91054.0,0.67514]
[1765129791860,0.0590952,91072.0,91054.0,0.67514]
[1765129791861,0.0590952,91080.0,91079.0,0.34337]
[1765129792155,0.34429911,91100.0,91079.0,0.34337]
[1765129792156,0.66249447,91086.0,91085.0,0.67514]
[1765129792361,0.66249447,91086.0,91085.0,0.7216]
[1765129792748,0.66249447,91086.0,91085.0,0.7325778]
[1765129793361,0.00027447,91086.0,91085.0,1.44606637]
[1765129793747,0.00016453,91095.0,91094.0,0.6861167]
[1765129793953,0.00016453,91095.0,91094.0,1.08526527]
[1765129794555,0.66222,91119.0,91118.0,0.3543438]
[1765129794754,0.66249435,91126.0,91125.0,0.354343]
[1765129795845,0.66249435,91126.0,91125.0,0.686113]
[1765129796046,0.00027435,91126.0,91125.0,0.72446157]
[1765129798364,0.2178405,91146.0,91145.0,0.3512606]
[1765129798365,0.33546,91146.0,91145.0,0.3512606]
[1765129798663,0.33546,91146.0,91145.0,1.4300206]
[1765129798856,1.07418,91146.0,91145.0,0.75994857]
[1765129799354,0.83418,91146.0,91145.0,0.75994857]
[1765129799555,0.66418,91146.0,91145.0,0.75994857]
[1765129799762,1.09418,91146.0,91145.0,0.75994857]
[1765129800366,1.09418,91146.0,91136.0,0.00016464]
[1765129800367,0.6751516,91137.0,91136.0,0.00016464]
[1765129800658,1.4259516,91137.0,91136.0,0.00016464]
[1765129800855,1.4259516,91137.0,91120.0,0.3608]
[1765129800856,0.6751535,91121.0,91120.0,0.3608]
[1765129801063,0.7851535,91121.0,91120.0,0.3608]
[1765129801355,0.3608,91128.0,91127.0,0.69745]
[1765129801563,0.6751522,91132.0,91131.0,0.69745]
[1765129801861,0.6751532,91123.0,91122.0,0.00016464]
[1765129802057,1.0251532,91123.0,91122.0,0.00016464]
[1765129802454,0.6751532,91123.0,91122.0,0.00016464]
[1765129802958,1.0651532,91123.0,91122.0,0.00016464]
[1765129804356,1.0651532,91123.0,91092.0,0.12859]
[1765129804357,0.6751548,91110.0,91092.0,0.12859]
[1765129804662,0.6751548,91110.0,91091.0,0.3608]
[1765129804663,0.675157,91092.0,91091.0,0.3608]
[1765129804853,0.66418,91092.0,91091.0,0.3608]
[1765129805455,1.04418,91092.0,91091.0,0.3608]
[1765129805657,1.22838,91092.0,91091.0,0.3608]
[1765129805862,1.74238,91092.0,91091.0,0.3572077]
[1765129806263,1.78238,91092.0,91091.0,0.3572077]
[1765129807961,0.66418,91083.0,91082.0,0.36096464]
[1765129808160,0.3464371,91092.0,91091.0,0.69745]
[1765129808353,0.0109777,91086.0,91082.0,0.36096464]
[1765129808554,0.3464377,91086.0,91085.0,0.69745]
[1765129808752,0.33546,91086.0,91085.0,0.69745]
[1765129809470,1.08418,91086.0,91085.0,0.69745]
[1765129809765,1.08418,91086.0,91085.0,0.34029]
[1765129810267,0.514,91093.0,91092.0,0.90388]
[1765129810463,0.00016464,91101.0,91100.0,0.69745]
[1765129810662,0.00016464,91101.0,91100.0,1.05825]
[1765129811062,0.66434464,91101.0,91100.0,1.05825]
[1765129811261,0.66434464,91101.0,91100.0,0.70109]
[1765129811466,1.09434464,91101.0,91100.0,0.3608]
[1765129811863,0.6891069,91093.0,91092.0,0.3608]
[1765129812169,1.1191069,91093.0,91092.0,0.3608]
[1765129812956,1.6331469,91093.0,91092.0,0.3608]
[1765129813557,1.6331469,91093.0,91092.0,1.26754]
[1765129813768,1.6331469,91093.0,91092.0,0.71287]
[1765129815261,1.6331469,91093.0,91092.0,1.26754]
[1765129815262,0.51404,91093.0,91092.0,1.26754]
[1765129815467,0.00016464,91101.0,91100.0,0.70459]
[1765129815663,0.3412,91119.0,91118.0,0.70459]
[1765129815970,1.04387,91119.0,91118.0,0.70459]
[1765129816563,0.3612,91119.0,91118.0,0.70459]
[1765129816764,0.7612,91119.0,91118.0,0.70459]
[1765129817167,0.0109734,91122.0,91121.0,0.70459]
[1765129817370,0.02,91122.0,91121.0,0.70459]
[1765129817957,0.00016434,91128.0,91127.0,0.70459]
[1765129819264,0.00016434,91128.0,91127.0,1.06539]
[1765129820161,0.0109697,91153.0,91142.0,0.70459]
[1765129820369,0.41,91153.0,91152.0,0.35207]
[1765129820573,0.41,91153.0,91146.0,0.3608]
[1765129820574,0.51424,91159.0,91146.0,0.3608]
[1765129820766,0.00027423,91166.0,91156.0,0.90674]
[1765129820959,0.41027423,91166.0,91165.0,0.70459]
[1765129821159,0.75147423,91166.0,91165.0,0.70459]
[1765129821365,1.09414423,91166.0,91165.0,0.70459]
[1765129821573,0.95414423,91166.0,91165.0,0.70459]
[1765129822157,0.00027423,91166.0,91165.0,0.70459]
[1765129822376,0.00027423,91166.0,91165.0,1.06539]
[1765129824571,0.3608,91179.0,91178.0,0.70459]
[1765129824773,0.7408,91179.0,91178.0,0.70459]
[1765129825865,0.0109655,91188.0,91178.0,0.70459]
[1765129826068,0.4109655,91188.0,91187.0,0.35207]
[1765129826375,1.0948355,91188.0,91187.0,0.35207]
[1765129826678,0.0109655,91188.0,91187.0,0.70459]
[1765129827170,1.1248355,91188.0,91187.0,0.70459]
[1765129828076,0.4409655,91188.0,91187.0,0.70459]
[1765129828278,0.7821655,91188.0,91187.0,0.70459]
[1765129828573,0.4409655,91188.0,91187.0,0.70459]
[1765129829364,0.3412,91177.0,91176.0,0.55422]
[1765129829569,0.3521667,91177.0,91176.0,0.90674]
[1765129830273,0.0109663,91182.0,91181.0,0.70459]
[1765129830571,0.3608,91190.0,91189.0,0.70459]
[1765129830765,0.51396,91196.0,91191.0,0.70459]
[1765129830968,0.0109645,91197.0,91196.0,0.70459]
[1765129831173,0.3109645,91197.0,91196.0,0.70459]
[1765129831874,0.0109653,91189.0,91188.0,0.90674]
[1765129832076,0.0109653,91189.0,91174.0,1.06555454]
[1765129832077,0.352167,91175.0,91174.0,1.06555454]
[1765129832275,0.51368,91190.0,91189.0,0.70459]
[1765129832477,0.3717641,91199.0,91198.0,0.70459]
[1765129832679,1.1029641,91199.0,91198.0,0.70459]
[1765129832870,0.7421641,91199.0,91198.0,0.70459]
[1765129833072,1.0848341,91199.0,91198.0,0.70459]
[1765129833472,0.7421641,91199.0,91198.0,0.70459]
[1765129834883,0.3521651,91191.0,91190.0,1.06539]
[1765129835078,0.6948351,91191.0,91190.0,1.06539]
[1765129836487,0.0109651,91191.0,91190.0,1.06539]
[1765129836785,0.0109646,91195.0,91194.0,0.70459]
[1765129837082,0.25,91195.0,91194.0,0.70459]
[1765129839580,0.51364,91198.0,91197.0,0.70459]
[1765129839774,0.52364,91198.0,91197.0,0.70459]
[1765129839981,0.76364,91198.0,91197.0,0.70459]
[1765129841983,1.10484,91198.0,91197.0,0.70459]
[1765129842378,1.10484,91198.0,91190.0,1.04739]
[1765129842379,0.69055,91191.0,91190.0,1.04739]
[1765129843377,0.69055,91183.0,91182.0,0.7132]
[1765129843579,0.701516,91183.0,91182.0,1.04739]
[1765129843778,1.081516,91183.0,91182.0,0.3608]
[1765129843989,0.831516,91183.0,91182.0,0.3608]
[1765129845989,0.365777,91175.0,91174.0,0.68675454]
[1765129846190,1.061517,91175.0,91174.0,0.00016454]
[1765129846984,1.061517,91175.0,91156.0,1.3943]
[1765129846985,0.69055,91157.0,91156.0,1.3943]
[1765129847285,0.69055,91157.0,91135.0,0.88736]
[1765129847286,0.35481,91136.0,91135.0,0.88736]
[1765129847494,1.2150011,91141.0,91140.0,0.68659]
[1765129847683,0.0109728,91127.0,91126.0,0.68659]
[1765129848392,0.0109722,91132.0,91131.0,0.68659]
[1765129848988,0.00016421,91136.0,91135.0,0.68659]
[1765129849385,0.02016421,91136.0,91135.0,0.68659]
[1765129849594,0.25016421,91136.0,91135.0,0.68659]
[1765129849988,0.02016421,91136.0,91135.0,0.68659]
[1765129850797,0.00016421,91136.0,91135.0,0.68659]
[1765129851592,0.35497421,91136.0,91135.0,0.88736]
[1765129851998,0.75497421,91136.0,91135.0,0.88736]
[1765129852195,0.40016421,91136.0,91135.0,0.88736]
[1765129852391,0.23016421,91136.0,91135.0,0.88736]
[1765129859202,0.00016421,91136.0,91135.0,0.88736]
[1765129861500,0.36016421,91136.0,91135.0,0.3524]
[1765129861707,1.05398421,91136.0,91135.0,0.3524]
[1765129862805,0.69398421,91136.0,91135.0,0.69093]
[1765129863004,0.00016421,91136.0,91135.0,0.69093]
[1765129863503,0.37016421,91136.0,91135.0,0.69093]
[1765129863801,0.00016421,91136.0,91135.0,0.69093]
[1765129864008,1.12398421,91136.0,91135.0,0.3524]
[1765129864307,1.12398421,91136.0,91135.0,0.69093]
[1765129864704,1.12398421,91136.0,91126.0,0.00027435]
[1765129864705,0.7047928,91127.0,91126.0,0.32692435]
[1765129864903,1.4255928,91127.0,91126.0,0.32692435]
[1765129865101,0.4217728,91127.0,91126.0,0.66545435]
[1765129865302,0.7217728,91127.0,91126.0,0.66545435]
[1765129866500,1.0817328,91127.0,91126.0,0.66545435]
[1765129867707,1.0817328,91127.0,91126.0,0.00027435]
[1765129868403,1.0817328,91127.0,91097.0,0.3608]
[1765129868404,0.7047938,91118.0,91106.0,0.0109752]
[1765129868710,0.7047938,91118.0,91097.0,0.3608]
[1765129868711,1.5884738,91118.0,91117.0,0.32681454]
[1765129869102,1.5884738,91118.0,91117.0,0.66534454]
[1765129869502,1.5884738,91118.0,91117.0,0.00016454]
[1765129869706,1.9492738,91118.0,91117.0,0.00016454]
[1765129870100,1.9492738,91118.0,91107.0,0.66529617]
[1765129870101,0.7047951,91108.0,91107.0,0.66529617]
[1765129870304,1.6084751,91108.0,91107.0,0.66529617]
[1765129872301,1.5975,91108.0,91107.0,0.66529617]
[1765129872500,1.5975,91108.0,91100.0,0.010976]
[1765129872501,0.0109755,91105.0,91100.0,0.010976]
[1765129872706,0.7369355,91105.0,91104.0,0.68666]
[1765129873114,0.9309255,91105.0,91104.0,0.68666]
[1765129873505,0.93104659,91105.0,91104.0,0.68666]
[1765129874719,0.66995,91099.0,91098.0,0.68682464]
[1765129874903,1.18367,91099.0,91098.0,0.68682464]
[1765129875315,1.61367,91099.0,91098.0,0.68682464]
[1765129877216,1.61367,91099.0,91098.0,0.00016464]
[1765129877414,1.61367,91099.0,91098.0,0.68682464]
[1765129878813,0.94372,91099.0,91098.0,0.89274464]
[1765129879418,1.27968,91099.0,91098.0,0.89274464]
[1765129881117,0.94372,91099.0,91098.0,0.89274464]
[1765129881318,1.27968,91099.0,91098.0,0.89274464]
[1765129882116,1.27968,91099.0,91098.0,0.68682464]
[1765129882819,1.27968,91099.0,91098.0,0.00016464]
[1765129883710,1.27978731,91099.0,91098.0,0.00016464]
[1765129883910,0.6809285,91079.0,91078.0,0.68666]
[1765129884115,1.101055,91079.0,91078.0,0.68666]
[1765129884514,0.377065,91079.0,91078.0,0.68666]
[1765129885126,0.041105,91079.0,91078.0,0.68666]
[1765129885611,0.0301265,91079.0,91078.0,0.68666]
[1765129886515,0.0001265,91079.0,91078.0,0.68666]
[1765129887217,0.5138,91087.0,91086.0,0.6976377]
[1765129887420,0.00016464,91088.0,91087.0,0.68666]
[1765129888210,0.73011464,91088.0,91087.0,0.68666]
[1765129888618,0.00016464,91088.0,91087.0,0.68666]
[1765129890615,0.5247761,91100.0,91099.0,0.6976361]
[1765129890616,0.5138,91100.0,91099.0,0.6976361]
[1765129890926,0.3717751,91108.0,91107.0,0.89258]
[1765129891828,0.7077351,91108.0,91107.0,0.89258]
[1765129892420,0.3608,91108.0,91107.0,0.89258]
[1765129893120,0.0109744,91114.0,91113.0,0.68666]
[1765129893429,0.4769344,91114.0,91113.0,0.68666]
[1765129893928,0.13,91114.0,91113.0,0.68666]
[1765129894421,0.13,91114.0,91112.0,0.0109745]
[1765129894422,0.00016464,91117.0,91116.0,0.68666]
[1765129894622,0.00016464,91117.0,91116.0,0.89258]
[1765129894828,0.00016464,91117.0,91116.0,0.9035541]
[1765129899619,0.66995,91113.0,91112.0,0.3608]
[1765129899828,1.06995,91113.0,91112.0,0.68961]
[1765129900032,0.6809253,91106.0,91105.0,0.68666]
[1765129900239,1.0509253,91106.0,91105.0,0.68666]
[1765129901228,0.8009253,91106.0,91105.0,0.68666]
[1765129901638,0.70147,91099.0,91098.0,0.88285464]
[1765129901838,0.70147,91099.0,91098.0,0.67693464]
[1765129902334,0.70147,91105.0,91104.0,0.33097]
[1765129902527,0.70147,91105.0,91104.0,0.67677]
[1765129904130,1.0732447,91111.0,91110.0,0.67677]
[1765129904432,1.4732447,91111.0,91110.0,0.67677]
[1765129904634,0.70147,91111.0,91110.0,0.67677]
[1765129904836,0.88147,91111.0,91110.0,0.67677]
[1765129905328,1.06147,91111.0,91110.0,0.67677]
[1765129905530,0.80147,91111.0,91110.0,0.67677]
[1765129906239,1.13147,91111.0,91110.0,0.67677]
[1765129906735,0.70147,91104.0,91103.0,1.03757]
[1765129908031,1.09147,91104.0,91103.0,1.03757]
[1765129908829,1.09147,91104.0,91098.0,0.67693464]
[1765129908830,0.70147,91099.0,91098.0,0.67693464]
[1765129909143,1.07147,91099.0,91098.0,0.67693464]
[1765129909835,1.07147,91099.0,91098.0,0.00016464]
[1765129910338,1.07147,91099.0,91098.0,0.34596464]
[1765129911333,1.07147,91099.0,91098.0,0.67693464]
[1765129912534,0.57743,91099.0,91098.0,0.88369464]
[1765129912734,0.93147,91099.0,91098.0,0.00016464]
[1765129914135,0.70147,91082.0,91081.0,0.6877483]
[1765129914335,1.21511,91088.0,91087.0,0.67677]
[1765129914535,0.70147,91081.0,91080.0,1.03757]
[1765129914842,0.70147,91081.0,91080.0,1.0485484]
[1765129915149,0.70147,91081.0,91080.0,1.2553084]
[1765129915337,0.70147,91081.0,91080.0,0.7066]
[1765129915645,0.70147,91081.0,91071.0,0.20692464]
[1765129915646,0.68754,91072.0,91071.0,0.89582464]
[1765129916443,0.33258,91077.0,91076.0,0.6889]
[1765129916643,0.77754,91077.0,91076.0,0.6889]
[1765129917646,0.68754,91077.0,91076.0,0.6889]
[1765129919833,0.84622,91080.0,91079.0,0.6889]
[1765129920033,1.59118,91080.0,91079.0,0.6889]
[1765129920238,1.20118,91080.0,91079.0,0.6889]
[1765129920451,1.54118,91080.0,91079.0,0.6889]
[1765129921350,0.51364,91080.0,91079.0,0.6889]
[1765129921739,0.6985178,91085.0,91084.0,0.6889]
[1765129921941,1.0985178,91085.0,91084.0,0.6889]
[1765129922546,0.6985188,91077.0,91076.0,1.0497]
[1765129922846,1.0685188,91077.0,91076.0,1.0497]
[1765129923040,1.0185188,91077.0,91076.0,1.0497]
[1765129924540,0.36258,91077.0,91076.0,1.0497]
[1765129924745,0.51368,91078.0,91077.0,0.6998788]
[1765129926254,0.00016464,91090.0,91089.0,0.6998773]
[1765129926551,0.51384464,91090.0,91089.0,0.6998773]
[1765129928156,0.84642464,91090.0,91089.0,0.6998773]
[1765129928346,1.20138464,91090.0,91089.0,0.6998773]
[1765129930751,0.51384464,91090.0,91089.0,0.6998773]
[1765129931447,0.00016464,91090.0,91089.0,0.6998773]
[1765129933554,0.7123853,91106.0,91105.0,0.69094]
[1765129933751,0.9123853,91106.0,91105.0,0.69094]
[1765129933946,0.90141,91106.0,91105.0,0.69094]
[1765129935153,0.00016464,91115.0,91104.0,0.20075]
[1765129935154,0.00016464,91115.0,91114.0,0.7019143]
[1765129936346,0.00016464,91115.0,91114.0,1.1319143]
[1765129936660,0.34243464,91115.0,91114.0,0.7019143]
[1765129936848,0.70157464,91115.0,91114.0,0.7019143]
[1765129937952,0.70157464,91115.0,91114.0,0.69094]
[1765129937953,1.07157464,91115.0,91114.0,0.69094]
[1765129938748,1.07157464,91115.0,91110.0,0.0109747]
[1765129938952,0.70141,91111.0,91110.0,0.7019147]
[1765129939357,0.00016464,91115.0,91114.0,0.7019143]
[1765129939556,0.43016464,91115.0,91114.0,0.7019143]
[1765129939757,0.77243464,91115.0,91114.0,0.7019143]
[1765129940158,0.00016464,91115.0,91114.0,0.7019143]
[1765129942166,0.70157464,91115.0,91114.0,0.7019143]
[1765129942754,1.09157464,91115.0,91114.0,0.33475]
[1765129942949,1.09157464,91115.0,91110.0,0.0109748]
[1765129942950,0.70141,91111.0,91110.0,0.7019148]
[1765129943567,0.70141,91108.0,91107.0,0.3608]
[1765129943759,1.13141,91108.0,91107.0,0.3608]
[1765129943957,0.70141,91103.0,91102.0,0.0109757]
[1765129944157,0.95141,91103.0,91102.0,0.0109757]
[1765129944450,0.95141,91103.0,91102.0,0.3457257]
[1765129944656,0.70141,91100.0,91099.0,0.69555]
[1765129944855,0.70141,91100.0,91099.0,0.33475]
[1765129945056,1.06141,91100.0,91099.0,0.33475]
[1765129945258,0.74141,91100.0,91099.0,0.33475]
[1765129945967,1.05141,91100.0,91099.0,0.33475]
[1765129946357,0.79141,91100.0,91099.0,0.33475]
[1765129946764,0.99141,91100.0,91099.0,0.33475]
[1765129946959,0.99141,91100.0,91096.0,0.00016464]
[1765129946960,0.70141,91097.0,91096.0,0.00016464]
[1765129947163,1.11141,91097.0,91096.0,0.00016464]
[1765129947762,0.79141,91097.0,91096.0,0.00016464]